bitfinex-derivatives/quotes_ETHF0:USTF0_20260113
["timestamp","ask_amount","ask_price","bid_price","bid_amount"]
[1768336434192,1.26089658,3201.7,3200.3,0.0035323]
[1768336434395,1.26089658,3201.7,3199.8,1.18084227]
[1768336435196,2.9836939,3201.4,3199.7,0.15631]
[1768336435496,1.26089658,3201.3,3199.7,0.16005775]
[1768336436489,1.16089658,3201.3,3199.7,0.16005775]
[1768336437492,1.52462096,3201.1,3199.7,0.16005775]
[1768336438386,1.52462096,3201.0,3199.7,0.16005775]
[1768336438895,3.125,3201.4,3200.2,0.15628]
[1768336440490,1.52462096,3201.1,3200.2,0.15628]
[1768336441096,1.52462096,3200.7,3199.7,0.00374775]
[1768336441988,1.52462096,3200.7,3199.0,0.15634]
[1768336442390,1.52462096,3200.7,3199.1,0.15633]
[1768336442991,1.52462096,3200.7,3199.5,0.15631]
[1768336443184,2.93362096,3201.1,3199.2,1.18084227]
[1768336443380,0.15621,3201.7,3199.2,1.18084227]
[1768336443586,1.409,3201.9,3200.5,0.15627]
[1768336443784,1.52462096,3201.7,3200.5,0.15627]
[1768336443989,1.409,3201.9,3200.5,0.15627]
[1768336444190,1.409,3201.9,3200.6,0.15626]
[1768336444386,1.409,3201.9,3200.6,1.18084227]
[1768336444798,1.409,3201.9,3200.8,1.33709227]
[1768336445190,1.52462096,3201.6,3200.3,1.34178631]
[1768336445389,1.52462096,3201.6,3201.0,0.0046856]
[1768336445598,1.52930656,3201.7,3200.3,1.34178631]
[1768336447503,0.0046856,3201.7,3200.6,1.34178631]
[1768336448598,0.0046856,3201.7,3200.7,0.15626]
[1768336450002,0.0046856,3201.7,3200.7,1.49804631]
[1768336451001,0.0046856,3201.7,3201.0,1.49802631]
[1768336451301,3.12975926,3202.3,3201.0,1.49802631]
[1768336451896,1.52462096,3201.8,3200.5,1.34178631]
[1768336452491,1.52462096,3201.8,3200.5,1.49805631]
[1768336454005,1.52462096,3202.2,3200.6,1.49804631]
[1768336454504,1.52462096,3202.3,3201.1,1.49801631]
[1768336454802,1.52462096,3201.9,3201.1,0.15623]
[1768336455005,1.52462096,3201.9,3200.6,1.34178631]
[1768336455199,1.52462096,3201.9,3200.6,1.49804631]
[1768336455400,1.52789097,3201.9,3200.6,1.49804631]
[1768336456502,0.00327001,3201.9,3200.6,1.49804631]
[1768336456704,1.52789097,3201.9,3200.6,1.49804631]
[1768336457505,1.52789097,3201.9,3200.7,0.15626]
[1768336457698,0.00327001,3201.9,3200.7,0.15626]
[1768336458007,0.00327001,3201.9,3200.8,0.15625]
[1768336462509,1.47727422,3203.1,3201.0,1.33214043]
[1768336462704,1.52462096,3202.6,3201.3,0.15622]
[1768336463311,0.1561,3203.9,3202.0,0.15619]
[1768336463509,1.52462096,3203.2,3202.0,0.16019209]
[1768336463809,1.52462096,3203.4,3202.1,0.15619]
[1768336468314,1.52462096,3203.6,3202.1,0.15619]
[1768336471118,2.84575518,3203.6,3202.1,0.15619]
[1768336471515,1.52462096,3203.2,3202.1,0.15619]
[1768336473116,1.52462096,3203.5,3202.2,0.15618]
[1768336476024,1.52462096,3203.7,3202.2,0.15618]
[1768336477219,1.52462096,3203.3,3202.2,0.15618]
[1768336478925,1.52462096,3203.5,3202.2,0.15618]
[1768336479626,1.405,3203.8,3202.1,1.50323561]
[1768336479809,2.92962096,3203.8,3202.1,1.50323561]
[1768336480014,2.92962096,3203.8,3202.2,0.15618]
[1768336480726,2.92962096,3203.8,3202.4,0.15617]
[1768336483325,0.00313033,3203.9,3202.0,0.00400209]
[1768336483326,0.00313033,3203.9,3202.5,1.65940561]
[1768336483527,0.00313033,3203.9,3202.5,1.50323561]
[1768336483528,1.40713033,3203.9,3202.5,1.50323561]
[1768336484524,1.40713033,3203.9,3202.0,1.5072377]
[1768336484725,1.40713033,3203.9,3202.6,0.15616]
[1768336485334,1.04079474,3203.2,3202.6,0.15616]
[1768336487334,2.92920564,3203.9,3202.6,0.15616]
[1768336490137,1.40713033,3203.9,3202.6,0.15616]
[1768336490439,0.00313033,3203.9,3202.6,1.50323561]
[1768336490639,0.00313033,3203.9,3202.9,0.15615]
[1768336491541,1.52207531,3203.7,3202.6,1.50323561]
[1768336491737,1.52207531,3203.7,3202.3,0.15618]
[1768336492044,1.52207531,3203.7,3202.2,1.50323561]
[1768336492045,0.00313033,3203.9,3202.6,0.15616]
[1768336493042,0.00313033,3203.9,3202.2,1.50323561]
[1768336493043,0.00313033,3203.9,3202.7,0.15616]
[1768336493234,0.00313033,3203.9,3202.8,0.15615]
[1768336493437,0.00313033,3203.9,3202.8,1.65938561]
[1768336498250,0.00313033,3203.9,3202.8,0.15615]
[1768336498541,1.52207531,3203.7,3202.4,1.50323561]
[1768336498847,1.52207531,3203.7,3202.1,0.15619]
[1768336499048,1.52207531,3203.7,3202.1,1.65942561]
[1768336499540,0.00313033,3203.9,3202.1,1.65942561]
[1768336500945,1.44522454,3203.9,3202.1,1.65942561]
[1768336502844,1.44522454,3203.9,3202.2,0.15618]
[1768336503051,0.00313033,3203.9,3202.4,1.65940561]
[1768336503538,1.44522454,3203.9,3202.4,0.15617]
[1768336503735,1.44209421,3203.7,3202.0,0.00400209]
[1768336504240,1.44209421,3203.5,3202.0,0.00400209]
[1768336504549,1.44209421,3203.3,3202.0,0.00400209]
[1768336504850,2.86132769,3203.2,3202.0,0.00400209]
[1768336505144,1.45932769,3203.0,3201.2,0.15623]
[1768336506148,1.45932769,3203.0,3201.2,0.1593066]
[1768336506350,1.45932769,3203.0,3201.2,1.66980448]
[1768336506545,1.45932769,3203.0,3201.3,1.66672788]
[1768336511258,1.45932769,3203.0,3201.2,0.0030766]
[1768336511259,1.402,3203.2,3201.5,1.66671788]
[1768336512651,2.86132769,3203.2,3201.5,1.66671788]
[1768336518156,3.01746769,3203.2,3201.5,1.66671788]
[1768336518358,1.52478158,3203.1,3201.5,1.66671788]
[1768336518659,3.24999103,3203.1,3201.2,0.0030766]
[1768336518959,1.52478158,3202.9,3201.2,0.0030766]
[1768336519359,1.52478158,3202.5,3201.2,0.0030766]
[1768336519562,1.52478158,3202.3,3201.2,0.0030766]
[1768336519753,4.64978158,3202.2,3201.2,0.0030766]
[1768336520154,3.125,3202.2,3201.2,0.0030766]
[1768336521056,6.07596,3202.8,3201.2,0.0030766]
[1768336521359,4.531,3202.7,3201.2,1.53582145]
[1768336525368,1.68095158,3202.5,3200.7,1.53274485]
[1768336525563,6.07596,3202.8,3200.9,0.15625]
[1768336525865,4.533,3202.7,3200.9,1.68899485]
[1768336526567,4.533,3202.7,3200.9,1.69179326]
[1768336528266,6.05778158,3202.7,3200.9,1.69179326]
[1768336528663,0.15618,3202.3,3200.9,0.00279841]
[1768336528966,1.52478158,3202.1,3200.9,0.00279841]
[1768336531361,1.04188578,3201.8,3200.9,0.00279841]
[1768336532164,1.04188578,3201.5,3200.4,1.68901485]
[1768336532472,1.41,3201.4,3200.4,1.68901485]
[1768336533265,1.41346705,3201.4,3200.4,1.6918016]
[1768336533456,1.41346705,3201.4,3200.4,0.15905675]
[1768336543274,0.00346705,3201.4,3200.6,0.15626]
[1768336543481,0.00346705,3201.4,3200.7,1.49658015]
[1768336543680,1.409,3202.1,3200.7,1.49658015]
[1768336544074,1.04188578,3200.8,3200.0,1.65287015]
[1768336544381,2.64406555,3201.6,3200.0,0.15629]
[1768336544382,1.04188578,3201.1,3200.0,0.15629]
[1768336544776,0.1562,3201.8,3200.0,0.15629]
[1768336545073,1.04188578,3201.5,3200.0,1.65287015]
[1768336545279,1.04188578,3201.5,3200.0,1.65591539]
[1768336547385,1.04188578,3201.2,3200.0,1.65591539]
[1768336547574,1.04188578,3201.5,3200.0,1.65591539]
[1768336547775,1.04188578,3201.2,3200.0,1.65591539]
[1768336549184,1.04188578,3201.5,3200.0,1.65591539]
[1768336550783,2.64406555,3201.5,3200.0,0.15933524]
[1768336551084,2.64406555,3201.5,3200.0,0.00304524]
[1768336551085,1.04188578,3200.6,3200.0,0.00304524]
[1768336552286,1.04188578,3200.8,3200.0,0.00304524]
[1768336552476,1.04188578,3200.8,3199.5,1.49658015]
[1768336553280,1.04188578,3200.8,3199.4,0.15632]
[1768336553486,2.64406555,3200.8,3199.4,0.15989342]
[1768336553991,1.60217977,3200.8,3199.4,0.15989342]
[1768336554179,1.04188578,3200.7,3199.4,0.15989342]
[1768336554486,1.60217977,3200.8,3199.4,0.15989342]
[1768336555182,1.04188578,3200.4,3199.4,0.00357342]
[1768336555588,1.04188578,3200.7,3199.4,0.00357342]
[1768336556185,2.64406555,3200.7,3199.4,0.00357342]
[1768336556387,1.60217977,3200.6,3199.4,0.00357342]
[1768336556581,1.04188578,3200.0,3198.7,1.49658015]
[1768336556982,1.04188578,3199.4,3198.6,0.15636]
[1768336557290,1.04188578,3199.4,3198.4,1.04983114]
[1768336557782,1.04547137,3199.4,3198.4,1.0537669]
[1768336558183,0.00358559,3199.4,3198.4,1.0537669]
[1768336559991,0.00358559,3199.4,3198.4,2.55034705]
[1768336561892,0.00358559,3199.4,3198.4,1.0537669]
[1768336563290,0.00358559,3199.4,3198.4,2.55034705]
[1768336563993,0.00358559,3199.4,3198.5,1.49658015]
[1768336564691,0.3129,3202.8,3198.6,1.65294015]
[1768336564692,0.24781131,3200.0,3198.6,1.65294015]
[1768336564994,1.407,3200.1,3198.6,1.65294015]
[1768336565495,1.66270013,3200.1,3198.6,1.65294015]
[1768336565686,1.66270013,3200.1,3198.6,0.15636]
[1768336565897,1.52580665,3200.0,3198.6,0.15636]
[1768336566189,1.52580665,3199.6,3198.4,1.0537669]
[1768336566389,3.12425558,3199.6,3198.4,1.0537669]
[1768336567993,1.59844893,3199.5,3198.4,1.0537669]
[1768336569191,2.93280665,3199.4,3198.4,1.0537669]
[1768336569790,2.93280665,3199.4,3198.1,0.15638]
[1768336569994,0.25570013,3200.1,3198.6,0.15636]
[1768336569995,0.0028463,3200.1,3198.6,0.15636]
[1768336570193,1.59844893,3199.7,3198.0,0.15639]
[1768336570494,1.407,3199.9,3198.6,0.15636]
[1768336570894,1.407,3199.9,3198.6,0.15904627]
[1768336571489,1.407,3199.9,3198.6,0.00268627]
[1768336571698,1.407,3199.9,3198.7,0.15635]
[1768336572392,0.0028463,3200.1,3198.8,0.15635]
[1768336572598,0.0028463,3200.1,3199.0,1.77946338]
[1768336573190,0.0028463,3200.1,3199.0,0.37197744]
[1768336574592,0.0028463,3200.1,3199.4,0.15632]
[1768336574795,1.407,3200.8,3199.5,0.15632]
[1768336575293,1.407,3200.8,3199.3,1.62312338]
[1768336575500,5.58505368,3204.2,3200.2,0.15628]
[1768336575501,1.59844893,3201.9,3200.2,0.15628]
[1768336575686,1.60162281,3201.9,3200.3,0.15628]
[1768336576091,1.50162281,3201.9,3200.3,0.15628]
[1768336576401,1.50162281,3201.9,3200.4,0.15627]
[1768336576599,1.40162281,3201.9,3200.4,0.15627]
[1768336576806,0.00317388,3201.9,3200.4,1.80892766]
[1768336577195,0.00317388,3201.9,3200.4,0.15627]
[1768336577414,1.52580665,3201.3,3199.9,1.65265766]
[1768336577594,1.52580665,3201.3,3199.7,0.15631]
[1768336579293,1.52580665,3201.3,3199.7,1.80896766]
[1768336581299,1.52580665,3201.3,3199.8,0.1563]
[1768336582100,1.55657095,3201.6,3199.8,1.65265766]
[1768336582300,1.52580665,3201.8,3200.0,1.65265766]
[1768336582502,1.52580665,3201.8,3200.2,0.15628]
[1768336582803,0.00317388,3201.9,3200.4,0.15627]
[1768336583001,1.55657095,3201.8,3200.4,0.15627]
[1768336583300,1.55657095,3201.8,3198.6,0.00268627]
[1768336583301,1.52580665,3200.5,3198.7,1.65265766]
[1768336583487,1.52580665,3200.5,3199.3,0.15633]
[1768336584494,4.4883776,3200.9,3199.3,0.15633]
[1768336587008,4.4883776,3200.9,3199.4,0.15632]
[1768336588303,1.406,3200.9,3199.1,1.65265766]
[1768336588507,1.406,3200.9,3199.6,0.15631]
[1768336588695,1.406,3200.9,3199.8,0.1563]
[1768336588899,1.55657095,3201.4,3200.0,0.15629]
[1768336590206,1.405,3201.6,3200.0,0.15629]
[1768336590510,1.405,3201.6,3200.0,1.80894766]
[1768336592211,1.405,3201.6,3200.0,1.65265766]
[1768336593701,1.405,3201.6,3200.2,0.15628]
[1768336594012,1.55657095,3201.4,3199.6,0.15631]
[1768336594510,1.52580665,3201.1,3199.7,0.1563]
[1768336594903,3.16416164,3201.1,3199.7,0.1563]
[1768336596314,3.16416164,3201.1,3199.8,0.1563]
[1768336597117,1.63835499,3201.1,3199.8,0.1563]
[1768336597313,3.16416164,3201.5,3199.8,0.1563]
[1768336597613,3.16416164,3201.5,3199.9,0.1563]
[1768336599410,1.63835499,3201.0,3199.9,0.1563]
[1768336600217,1.63835499,3200.6,3199.2,0.15633]
[1768336600421,1.52580665,3200.3,3199.2,0.15633]
[1768336600633,1.63835499,3200.4,3199.2,0.15633]
[1768336604730,1.63835499,3200.1,3199.2,0.15633]
[1768336605032,1.63835499,3200.1,3198.6,0.15904627]
[1768336605423,1.52580665,3200.2,3197.8,1.52580665]
[1768336605424,1.52580665,3199.4,3197.8,1.64244906]
[1768336605629,1.63835499,3199.6,3197.8,1.64244906]
[1768336605935,1.63835499,3199.6,3198.2,0.15638]
[1768336606536,1.64100015,3199.6,3198.2,0.15945062]
[1768336608440,1.63835499,3199.3,3198.2,0.15945062]
[1768336608742,1.63835499,3199.3,3198.2,0.00307062]
[1768336609336,3.16416164,3198.5,3197.0,0.15644]
[1768336609640,1.63835499,3198.4,3197.1,0.15643]
[1768336610433,1.63835499,3198.3,3197.1,0.16018309]
[1768336611439,3.16416164,3198.3,3197.1,0.00375309]
[1768336611633,1.63835499,3198.2,3197.1,0.00375309]
[1768336612725,1.63835499,3198.2,3196.5,0.15646]
[1768336613334,1.63835499,3198.2,3196.6,0.15646]
[1768336613839,1.63835499,3198.2,3196.2,0.0026088]
[1768336614227,1.63835499,3198.2,3194.3,7.18883522]
[1768336614228,1.52580665,3197.9,3194.3,7.18883522]
[1768336614431,1.63835499,3196.6,3195.5,0.15651]
[1768336614838,1.64221489,3196.6,3195.5,0.15952128]
[1768336616739,0.0038599,3196.6,3195.5,0.00301128]
[1768336617639,0.0038599,3196.6,3195.8,0.15649]
[1768336619941,1.405,3197.0,3195.8,0.15649]
[1768336619942,0.0544702,3197.7,3195.8,1.64244906]
[1768336620138,0.0544702,3197.7,3195.5,0.00301128]
[1768336620139,1.63835499,3196.9,3195.5,0.00301128]
[1768336620339,1.63835499,3197.1,3195.5,0.00301128]
[1768336620935,1.64093399,3197.1,3195.5,0.00301128]
[1768336621639,0.002579,3197.1,3196.3,0.15647]
[1768336621846,1.63835499,3197.6,3196.5,0.15646]
[1768336622244,1.63835499,3197.9,3196.5,0.15646]
[1768336622736,1.64213714,3197.9,3195.8,0.1565]
[1768336623445,1.64213714,3197.9,3195.9,0.15649]
[1768336623854,1.64213714,3197.9,3196.1,0.15648]
[1768336624340,1.64213714,3197.9,3196.3,0.15647]
[1768336624541,1.64213714,3197.9,3195.6,1.64244906]
[1768336624744,1.64213714,3197.9,3196.5,0.15646]
[1768336625039,1.90250304,3197.6,3195.5,0.00301128]
[1768336625245,1.90250304,3197.4,3195.5,0.00301128]
[1768336625541,3.63420133,3197.2,3195.5,0.00301128]
[1768336625746,1.90250304,3197.2,3195.5,0.00301128]
[1768336627742,1.90250304,3197.2,3195.9,0.15649]
[1768336628046,1.90250304,3197.2,3196.2,0.15648]
[1768336628844,1.90250304,3197.7,3196.3,0.15647]
[1768336629044,0.00378215,3197.9,3195.5,1.80545855]
[1768336629246,0.00378215,3197.9,3196.8,0.15645]
[1768336629449,0.00378215,3197.9,3196.7,0.15645]
[1768336630442,0.00378215,3197.9,3196.1,1.80244727]
[1768336630638,0.00378215,3197.9,3197.1,0.15643]
[1768336631344,0.00378215,3197.9,3196.4,0.15647]
[1768336632455,0.00378215,3197.9,3196.1,1.80244727]
[1768336632643,0.00378215,3197.9,3196.1,7.80244727]
[1768336632947,0.00378215,3197.9,3196.8,0.15645]
[1768336633146,0.00378215,3197.9,3196.9,0.15644]
[1768336633448,1.90250304,3198.7,3196.5,1.73169829]
[1768336633749,1.90250304,3198.7,3197.6,0.15641]
[1768336634143,1.404,3199.1,3197.6,0.15641]
[1768336634348,3.30650304,3199.1,3197.6,0.15641]
[1768336634544,1.73169829,3197.7,3196.0,3.13]
[1768336634744,1.73169829,3197.7,3193.9,11.0597465]
[1768336634745,4.598,3197.6,3195.2,1.95896727]
[1768336634941,4.598,3197.6,3195.3,1.95896727]
[1768336634942,1.73169829,3197.0,3195.3,1.95896727]
[1768336635141,4.598,3197.6,3195.5,1.95895727]
[1768336635349,0.065,3197.6,3195.9,1.80244727]
[1768336635546,3.129,3198.3,3196.1,1.80244727]
[1768336635748,0.43797894,3198.2,3196.1,1.8046535]
[1768336635952,1.74196859,3198.1,3196.1,0.00220623]
[1768336636154,0.43794371,3198.0,3196.1,0.00220623]
[1768336636359,1.30402488,3198.1,3196.1,0.00220623]
[1768336636544,0.43814614,3198.0,3196.1,0.00220623]
[1768336636857,1.30402488,3198.1,3196.1,0.00220623]
[1768336637153,0.43814502,3198.0,3196.1,0.00220623]
[1768336637754,0.43814502,3198.0,3196.1,1.88989597]
[1768336638145,3.129,3198.3,3196.1,1.88989597]
[1768336638749,3.129,3198.3,3196.1,0.00220623]
[1768336638750,1.45258902,3198.1,3196.1,0.00220623]
[1768336638952,1.45258902,3197.9,3196.1,0.00220623]
[1768336639149,0.43869637,3197.8,3196.1,0.00220623]
[1768336639348,0.43869637,3197.7,3196.1,0.00220623]
[1768336639549,1.45258902,3197.9,3196.1,0.00220623]
[1768336639763,0.89144338,3197.9,3196.1,0.00220623]
[1768336640647,0.15639,3198.0,3196.1,1.88989597]
[1768336640953,0.21079471,3198.8,3196.1,1.88989597]
[1768336642254,0.21079471,3198.8,3196.3,1.88768974]
[1768336642560,0.15636,3198.7,3196.3,1.88768974]
[1768336643250,0.83076631,3198.7,3196.3,1.88768974]
[1768336643444,1.73169829,3198.6,3196.3,1.88768974]
[1768336643851,0.83076631,3198.7,3196.3,1.88768974]
[1768336644961,0.15636,3198.7,3196.3,2.04415974]
[1768336645458,0.05444471,3198.8,3196.6,1.88768974]
[1768336645663,0.97775581,3199.1,3196.9,1.88768974]
[1768336646050,0.97775581,3199.1,3196.9,2.04412974]
[1768336647861,0.97775581,3199.1,3197.1,1.88768974]
[1768336648162,1.73169829,3197.2,3194.9,1.88768974]
[1768336648352,1.73169829,3196.6,3193.9,1.88768974]
[1768336648558,1.88815829,3196.6,3194.2,1.88768974]
[1768336648764,1.88815829,3196.6,3194.2,2.04426974]
[1768336648964,1.89149916,3196.6,3194.2,2.0480564]
[1768336650265,0.15980087,3196.6,3194.4,1.88768974]
[1768336651656,0.43468633,3196.5,3194.4,1.88768974]
[1768336651859,0.15980087,3196.6,3194.4,1.88768974]
[1768336651860,0.43468633,3196.4,3194.4,1.88768974]
[1768336652062,0.15980087,3196.6,3194.4,1.88768974]
[1768336652367,0.43451594,3196.5,3194.4,1.88768974]
[1768336652672,0.15980087,3196.6,3194.4,1.88768974]
[1768336652868,0.43451654,3196.5,3194.4,1.88768974]
[1768336653170,0.15980087,3196.6,3194.4,1.88768974]
[1768336653475,0.00334087,3196.6,3194.6,1.88768974]
[1768336654555,1.73169829,3196.5,3194.6,1.88768974]
[1768336657585,1.73169829,3196.5,3194.2,0.00378666]
[1768336657769,1.73169829,3195.3,3193.7,1.86119255]
[1768336657969,4.532,3195.7,3193.9,1.86118255]
[1768336659076,1.73169829,3195.1,3193.9,0.00316309]
[1768336659272,1.73169829,3195.1,3193.3,2.76977908]
[1768336659473,6.26369829,3195.7,3193.4,1.70459255]
[1768336659675,3.131,3196.4,3194.0,1.70459255]
[1768336659881,3.131,3196.4,3194.0,1.86117255]
[1768336660073,3.131,3196.4,3194.2,1.70459255]
[1768336660381,3.131,3196.4,3194.2,1.70847298]
[1768336664477,1.73169829,3196.1,3194.2,1.70847298]
[1768336664686,3.131,3196.4,3194.2,1.70847298]
[1768336667372,1.73169829,3196.1,3194.2,1.70847298]
[1768336675886,3.131,3196.4,3194.2,1.70847298]
[1768336676089,3.131,3196.4,3194.4,1.70459255]
[1768336676395,3.131,3196.4,3194.4,1.86115255]
[1768336676600,3.131,3196.4,3194.6,1.70459255]
[1768336677387,0.43661839,3196.3,3194.6,1.70459255]
[1768336677586,3.131,3196.4,3194.6,1.70459255]
[1768336677890,1.40534087,3196.6,3194.6,1.70459255]
[1768336677891,0.00334087,3196.6,3194.6,1.86114255]
[1768336678093,0.43666806,3196.5,3194.6,1.86114255]
[1768336678294,0.00334087,3196.6,3194.6,1.86114255]
[1768336678495,0.4368495,3196.5,3194.6,1.86114255]
[1768336678681,0.00334087,3196.6,3194.6,1.86114255]
[1768336678889,0.43685092,3196.5,3194.6,1.86114255]
[1768336679088,0.00334087,3196.6,3194.6,1.86114255]
[1768336679289,0.43676517,3196.5,3194.6,1.86114255]
[1768336679498,0.00334087,3196.6,3194.6,1.86114255]
[1768336679700,0.43676035,3196.5,3194.6,1.86114255]
[1768336679900,0.00334087,3196.6,3194.6,1.86114255]
[1768336681195,1.73169829,3196.4,3194.6,1.86114255]
[1768336681399,1.52951921,3196.1,3194.6,1.86114255]
[1768336681691,1.52951921,3196.1,3194.6,1.70459255]
[1768336681893,0.43662138,3196.0,3194.6,1.70459255]
[1768336682102,1.96614059,3195.9,3194.6,1.70459255]
[1768336682290,1.52951921,3195.9,3194.6,1.70459255]
[1768336682498,0.43657103,3195.8,3194.6,1.70459255]
[1768336682701,1.52951921,3195.5,3194.6,1.70459255]
[1768336682999,1.52951921,3195.7,3194.6,1.70459255]
[1768336684101,0.43656611,3195.6,3194.6,1.70459255]
[1768336684399,1.52951921,3195.7,3194.6,1.70459255]
[1768336684700,0.43657287,3195.6,3194.6,1.70459255]
[1768336684900,1.52951921,3196.1,3194.6,1.70459255]
[1768336685204,0.43657321,3196.0,3194.6,1.70459255]
[1768336685502,0.43657321,3195.9,3194.6,1.70459255]
[1768336685693,0.43657321,3195.8,3194.6,1.70459255]
[1768336685895,0.43657321,3195.7,3194.6,1.70459255]
[1768336686096,0.43657321,3195.6,3194.6,1.70459255]
[1768336686291,0.00334087,3196.6,3194.8,1.29891285]
[1768336686601,0.43667649,3196.5,3194.8,1.29891285]
[1768336686799,0.43667649,3196.4,3194.8,1.29891285]
[1768336687001,0.00334087,3196.6,3194.8,1.29891285]
[1768336687297,0.43671811,3196.5,3194.8,1.29891285]
[1768336687500,0.43671811,3196.4,3194.8,1.29891285]
[1768336687698,0.00334087,3196.6,3194.8,1.29891285]
[1768336687995,0.43638669,3196.5,3194.8,1.29891285]
[1768336688200,0.43638669,3196.4,3194.8,1.29891285]
[1768336688400,0.00334087,3196.6,3194.8,1.29891285]
[1768336688603,0.43634369,3196.5,3194.8,1.29891285]
[1768336688803,0.43634369,3196.4,3194.8,1.29891285]
[1768336689103,0.00334087,3196.6,3194.8,1.29891285]
[1768336689301,0.96927386,3196.7,3194.8,1.29891285]
[1768336690302,0.97176841,3196.7,3194.8,1.29891285]
[1768336691107,0.00249455,3196.7,3194.8,1.29891285]
[1768336691509,0.68846376,3197.1,3194.8,1.29891285]
[1768336691806,0.93940893,3197.1,3194.8,1.29891285]
[1768336692605,0.15645,3196.9,3194.8,1.29891285]
[1768336693603,0.94210256,3197.1,3194.8,1.45546285]
[1768336693800,0.00269363,3197.1,3194.8,1.45546285]
[1768336694394,0.00269363,3197.1,3194.6,4.66051921]
[1768336694395,0.00269363,3197.1,3195.0,2.82843206]
[1768336694597,0.00269363,3197.1,3195.5,1.29891285]
[1768336694806,0.00269363,3197.1,3195.7,1.29891285]
[1768336697310,0.05445732,3198.6,3196.1,1.07243687]
[1768336697502,3.131,3199.1,3196.7,1.07243687]
[1768336697697,3.131,3199.1,3196.7,1.22888687]
[1768336697901,3.131,3199.1,3196.9,1.07243687]
[1768336698205,1.52951921,3199.5,3197.1,1.22886687]
[1768336698511,1.53194095,3199.5,3197.8,1.07243687]
[1768336700610,1.52951921,3199.1,3197.8,1.07243687]
[1768336701011,1.52951921,3198.7,3197.1,0.00241639]
[1768336702611,1.52951921,3199.0,3197.1,0.00241639]
[1768336702911,1.52951921,3198.2,3197.1,0.00241639]
[1768336703311,0.15637,3198.5,3196.1,0.15648]
[1768336703312,1.52951921,3197.8,3196.1,0.15648]
[1768336703499,0.15638,3198.3,3196.1,0.15648]
[1768336703704,1.52951921,3198.1,3196.1,0.15648]
[1768336704211,0.15639,3198.0,3195.7,0.378]
[1768336704416,1.52951921,3197.7,3195.7,0.00270623]
[1768336705309,1.52951921,3197.7,3195.8,1.07243687]
[1768336705610,1.68592921,3197.7,3195.8,1.07243687]
[1768336708613,0.15641,3197.6,3195.8,1.07243687]
[1768336708818,1.52951921,3197.3,3195.8,1.07243687]
[1768336709507,1.68594921,3197.3,3195.7,0.00270623]
[1768336710113,1.52951921,3196.9,3195.7,0.00270623]
[1768336710318,0.7688045,3195.9,3193.3,6.65539181]
[1768336710516,1.52951921,3193.7,3192.4,1.07243687]
[1768336710717,1.52951921,3193.3,3191.6,1.07243687]
[1768336711117,1.52951921,3193.4,3191.6,1.07243687]
[1768336711310,0.24713305,3193.6,3191.6,1.07243687]
[1768336711616,1.52951921,3193.3,3191.6,1.07469164]
[1768336712118,1.52951921,3193.3,3192.3,0.004693]
[1768336712314,0.004693,3192.8,3192.3,1.07712987]
[1768336713314,0.00385052,3193.4,3192.3,1.07712987]
[1768336713517,1.40085052,3193.4,3192.3,1.07712987]
[1768336713910,0.00385052,3193.4,3192.3,1.07712987]
[1768336714425,3.131,3194.0,3192.6,1.07243687]
[1768336714624,0.24935637,3194.7,3192.6,1.07243687]
[1768336714923,1.52951921,3194.5,3192.6,1.07243687]
[1768336715216,4.528,3194.6,3193.3,0.004693]
[1768336715217,1.397,3194.4,3193.3,0.004693]
[1768336715417,4.53073824,3194.4,3193.3,0.004693]
[1768336716215,1.397,3194.3,3193.3,0.004693]
[1768336717823,1.397,3194.2,3193.3,0.004693]
[1768336718013,0.00273824,3194.4,3193.3,0.004693]
[1768336718219,1.397,3194.3,3193.3,0.004693]
[1768336718728,1.397,3194.3,3193.3,0.91945692]
[1768336719810,0.00273824,3194.4,3193.3,0.91945692]
[1768336733129,3.128,3196.0,3193.3,0.91945692]
[1768336733329,0.15654,3194.9,3193.3,0.91945692]
[1768336733633,1.68608921,3194.3,3193.3,0.004693]
[1768336733822,3.133,3194.2,3193.3,0.004693]
[1768336734229,3.13605447,3194.2,3193.3,0.004693]
[1768336734430,3.13605447,3194.2,3192.8,0.91476392]
[1768336734630,0.00305447,3194.2,3192.8,0.91476392]
[1768336734832,0.00305447,3194.2,3193.0,0.91476392]
[1768336735125,1.52951921,3195.6,3193.4,0.91476392]
[1768336735330,1.52951921,3195.6,3193.4,1.07137392]
[1768336735331,1.397,3195.5,3193.4,1.07137392]
[1768336735932,1.52951921,3195.2,3193.4,0.91476392]
[1768336736138,1.52951921,3194.8,3193.4,0.91476392]
[1768336736738,0.00328359,3195.5,3193.5,0.91476392]
[1768336737834,1.397,3195.4,3193.5,0.91476392]
[1768336739642,1.397,3195.4,3193.5,1.68612921]
[1768336739942,0.00328359,3195.5,3193.8,0.91476392]
[1768336740142,0.00328359,3195.5,3194.0,0.91476392]
[1768336740344,0.00328359,3195.5,3194.0,0.91874904]
[1768336741042,1.52951921,3196.0,3194.1,0.91476392]
[1768336741043,1.397,3196.0,3194.1,0.91476392]
[1768336741340,0.43149966,3195.9,3194.3,0.91476392]
[1768336741539,1.397,3196.2,3194.3,0.91476392]
[1768336741734,0.4316647,3196.1,3194.3,0.91476392]
[1768336741937,0.00324065,3196.1,3194.3,0.91476392]
[1768336742136,0.00324065,3196.1,3194.0,0.00398512]
[1768336742137,0.00324065,3196.1,3194.5,0.91476392]
[1768336743044,0.43136362,3196.0,3194.5,0.91476392]
[1768336743242,0.43136362,3195.9,3194.5,0.91476392]
[1768336743450,0.00324065,3196.1,3194.5,0.91476392]
[1768336743751,0.4313688,3196.0,3194.5,0.91476392]
[1768336743952,0.5878588,3195.9,3194.5,0.91476392]
[1768336744154,0.4313688,3195.8,3194.5,0.91476392]
[1768336744457,3.5633688,3195.7,3194.5,0.91476392]
[1768336744643,1.8273688,3195.6,3194.5,0.91476392]
[1768336744844,1.396,3195.7,3194.5,0.91476392]
[1768336745450,1.55249,3195.9,3194.5,0.91476392]
[1768336746256,0.00324065,3196.1,3194.5,0.91476392]
[1768336748668,0.00324065,3196.1,3194.5,1.07132392]
[1768336748849,0.00324065,3196.1,3194.6,0.70052748]
[1768336749554,1.73321364,3195.9,3194.6,0.70052748]
[1768336749856,4.528,3196.0,3194.6,0.70052748]
[1768336750060,0.43103202,3195.9,3194.6,0.70052748]
[1768336750260,4.528,3196.0,3194.6,0.70052748]
[1768336750461,0.43100276,3195.9,3194.6,0.70052748]
[1768336750662,4.68449,3196.0,3194.6,0.70052748]
[1768336750855,0.43100409,3195.9,3194.6,0.70052748]
[1768336751158,4.68449,3196.0,3194.6,0.70052748]
[1768336751359,0.43102217,3195.9,3194.6,0.70052748]
[1768336751554,1.55149,3196.0,3194.6,0.70052748]